bitfinex/quotes_SOLUSD_20240625
["timestamp","ask_amount","ask_price","bid_price","bid_amount"]
[1719327464602,7.2193,138.52,138.44,18.0582]
[1719327464832,7.2193,138.52,138.45,7.2227]
[1719327464833,14.73444936,138.52,138.45,7.2227]
[1719327465037,7.2196,138.51,138.44,18.0582]
[1719327465834,7.2196,138.51,138.44,25.2813]
[1719327466405,7.51514936,138.52,138.46,7.2219]
[1719327466628,7.51514936,138.52,138.47,8.25178397]
[1719327466813,7.2181,138.54,138.48,7.2211]
[1719327467018,7.2181,138.54,138.48,1.26608393]
[1719327467211,7.2181,138.54,138.48,1.26642484]
[1719327467533,20.0,138.53,138.48,1.65107821]
[1719327468346,20.0,138.53,138.46,18.055]
[1719327468641,20.0,138.54,138.46,25.2768]
[1719327469014,7.219,138.53,138.46,25.2768]
[1719327469218,7.219,138.53,138.47,7.2217]
[1719327469219,20.0,138.52,138.47,7.2217]
[1719327469742,27.2192,138.52,138.46,25.2772]
[1719327469920,20.0,138.52,138.45,7.2225]
[1719327470239,20.0,138.54,138.43,18.0588]
[1719327470441,20.0,138.54,138.46,7.2221]
[1719327470623,7.219,138.53,138.46,7.2221]
[1719327470943,20.0,138.52,138.46,7.2219]
[1719327471147,20.0,138.52,138.47,7.2217]
[1719327471442,20.0,138.53,138.47,7.2217]
[1719327471611,20.0,138.53,138.48,7.2212]
[1719327471834,14.73538728,138.55,138.48,7.2212]
[1719327472035,7.51778728,138.55,138.49,7.2207]
[1719327472641,7.2171,138.56,138.49,7.3907]
[1719327473241,7.2166,138.57,138.49,7.3907]
[1719327473553,7.2166,138.57,138.49,7.5607]
[1719327473734,7.2172,138.56,138.49,7.5607]
[1719327473934,7.2172,138.56,138.49,7.3907]
[1719327474729,7.2176,138.55,138.49,7.3907]
[1719327475238,28.54447514,138.58,138.47,18.0536]
[1719327475239,7.219,138.53,138.47,18.0536]
[1719327475438,46.58477514,138.58,138.47,18.0536]
[1719327475762,7.2193,138.52,138.46,7.2221]
[1719327475956,46.58487514,138.58,138.47,18.0533]
[1719327476134,20.0,138.57,138.47,18.0533]
[1719327476458,27.2167,138.57,138.49,7.2207]
[1719327476933,27.2167,138.57,138.49,7.3907]
[1719327477127,27.2167,138.57,138.49,7.5607]
[1719327477322,7.217,138.56,138.49,7.5607]
[1719327477527,20.0,138.55,138.49,7.5607]
[1719327478738,27.2176,138.55,138.49,7.2207]
[1719327479063,27.2176,138.55,138.47,18.0533]
[1719327479263,20.0,138.55,138.49,7.2207]
[1719327479777,27.2177,138.55,138.49,7.2207]
[1719327480058,20.0,138.55,138.49,7.2207]
[1719327480259,20.0,138.55,138.49,7.3907]
[1719327480464,20.0,138.55,138.49,7.2207]
[1719327480465,27.2177,138.55,138.49,7.2207]
[1719327481330,28.54447514,138.58,138.49,8.83286231]
[1719327481556,20.0,138.57,138.49,9.00286231]
[1719327481944,20.0,138.57,138.49,7.5607]
[1719327484168,20.0,138.57,138.47,61.5733]
[1719327484169,27.52044176,138.57,138.47,18.0533]
[1719327484528,7.2184,138.54,138.47,25.2749]
[1719327484755,7.2184,138.54,138.48,7.2211]
[1719327484965,7.2182,138.54,138.48,7.2211]
[1719327485137,7.2182,138.54,138.47,25.2749]
[1719327485755,7.2182,138.54,138.42,38.38]
[1719327485756,21.3762,138.51,138.42,16.6]
[1719327485951,20.8561149,138.5,138.42,34.66]
[1719327486161,28.0767149,138.5,138.42,16.6]
[1719327486461,20.8561149,138.5,138.44,7.2233]
[1719327486765,20.8561149,138.5,138.42,16.6]
[1719327486766,28.0763149,138.5,138.43,25.2825]
[1719327486949,28.0763149,138.5,138.43,25.2824]
[1719327487153,20.8561149,138.5,138.43,25.2823]
[1719327487372,28.0763149,138.5,138.43,25.2823]
[1719327487667,20.8561149,138.5,138.44,7.2232]
[1719327487870,7.2208,138.49,138.43,18.0587]
[1719327488246,28.0764149,138.5,138.43,25.2825]
[1719327488445,20.8561149,138.5,138.43,18.0587]
[1719327488639,20.8561149,138.5,138.44,7.2233]
[1719327488847,28.0766149,138.5,138.43,25.2824]
[1719327489156,7.2209,138.49,138.43,18.0587]
[1719327490162,7.2209,138.49,138.42,7.2242]
[1719327490365,27.2213,138.48,138.4,18.0628]
[1719327490756,20.0,138.48,138.4,18.0628]
[1719327490961,26.59,138.49,138.4,18.0628]
[1719327491168,7.2229,138.45,138.39,7.2258]
[1719327491654,26.59,138.49,138.4,7.2252]
[1719327491857,7.2221,138.47,138.4,7.2252]
[1719327492066,7.2229,138.45,138.39,18.0644]
[1719327492362,20.0,138.48,138.39,18.0644]
[1719327492668,7.2229,138.45,138.39,25.2901]
[1719327492835,7.2224,138.46,138.39,25.2901]
[1719327493456,7.2224,138.46,138.39,18.0644]
[1719327493771,7.2224,138.46,138.39,25.2902]
[1719327493943,27.2228,138.45,138.39,25.2902]
[1719327494143,7.2224,138.46,138.39,25.2902]
[1719327494346,20.0,138.45,138.39,25.2902]
[1719327494943,27.2229,138.45,138.39,18.0644]
[1719327495154,27.2229,138.45,138.36,25.2949]
[1719327495155,7.224,138.43,138.36,25.2949]
[1719327495366,20.0,138.42,138.36,25.2949]
[1719327495851,7.2254,138.4,138.34,7.2283]
[1719327496347,20.0,138.42,138.31,15.7043]
[1719327496686,27.2238,138.44,138.37,7.2266]
[1719327497278,20.0,138.44,138.35,25.297]
[1719327497459,0.17,138.43,138.32,18.0729]
[1719327497658,7.2257,138.4,138.33,7.229]
[1719327497863,7.2256,138.4,138.34,7.2284]
[1719327498060,20.0,138.44,138.31,15.7043]
[1719327498380,27.2234,138.44,138.38,7.2259]
[1719327498549,7.2239,138.43,138.32,63.52]
[1719327498754,27.2244,138.42,138.36,7.2273]
[1719327499068,27.2244,138.42,138.36,25.295]
[1719327499069,20.0,138.42,138.36,25.295]
[1719327499458,7.2243,138.42,138.36,18.0677]
[1719327500176,7.225,138.41,138.35,7.3979]
[1719327500472,7.2255,138.4,138.35,0.17]
[1719327500680,7.2255,138.4,138.34,7.2284]
[1719327500882,7.226,138.39,138.33,25.3006]
[1719327501049,7.2256,138.4,138.33,25.3006]
[1719327501245,7.2266,138.38,138.34,1.44771611]
[1719327501445,7.2266,138.38,138.31,22.934]
[1719327501446,71.41993602,138.44,138.32,1.45028474]
[1719327501672,20.0,138.4,138.33,1.45017989]
[1719327501881,20.0,138.4,138.31,15.7043]
[1719327501882,27.2255,138.4,138.34,7.2283]
[1719327502780,27.2255,138.4,138.34,18.071]
[1719327503072,7.2259,138.39,138.33,7.2289]
[1719327503286,27.2256,138.4,138.33,7.2289]
[1719327503446,27.2256,138.4,138.34,7.2285]
[1719327503649,27.2256,138.4,138.33,18.0724]
[1719327503871,27.2256,138.4,138.33,25.3013]
[1719327504882,34.75480986,138.4,138.33,25.3013]
[1719327505389,34.75480986,138.4,138.3,25.3067]
[1719327505390,7.2273,138.37,138.3,25.3067]
[1719327505680,7.2273,138.37,138.31,7.4]
[1719327505980,20.0,138.36,138.3,25.3068]
[1719327506984,20.0,138.36,138.3,18.0762]
[1719327507180,22.5231,138.39,138.3,18.0762]
[1719327507181,7.228,138.35,138.3,18.0762]
[1719327507355,7.228,138.35,138.29,7.2311]
[1719327508973,27.2289,138.34,138.27,25.3115]
[1719327509179,7.2289,138.34,138.28,7.2315]
[1719327509383,20.0,138.33,138.27,25.3118]
[1719327510387,27.2291,138.33,138.27,25.3118]
[1719327510687,23.5098,138.32,138.26,7.2327]
[1719327510891,20.0,138.31,138.26,7.2327]
[1719327511464,20.0,138.31,138.25,7.2331]
[1719327512082,20.0,138.31,138.26,18.0815]
[1719327512281,20.0,138.31,138.27,7.2318]
[1719327513282,16.2802,138.32,138.28,7.2315]
[1719327513467,16.2802,138.32,138.27,7.232]
[1719327513793,16.2802,138.32,138.26,7.2324]
[1719327514085,20.0,138.31,138.26,7.2324]
[1719327515170,20.0,138.31,138.25,25.3154]
[1719327515682,20.0,138.31,138.26,7.2324]
[1719327515892,15.7545,138.35,138.27,0.17]
[1719327516082,20.0,138.34,138.29,18.0777]
[1719327516774,20.0,138.34,138.29,25.3087]
[1719327518088,20.0,138.34,138.29,18.0777]
[1719327518287,20.0,138.34,138.29,25.3087]
[1719327518788,20.0,138.34,138.29,18.0777]
[1719327519290,20.0,138.34,138.29,25.3087]
[1719327521793,20.0,138.34,138.27,7.2319]
[1719327521997,7.2294,138.33,138.26,25.3135]
[1719327522293,20.0,138.32,138.26,25.3135]
[1719327522669,20.0,138.32,138.27,7.2322]
[1719327523070,20.0,138.32,138.26,25.3135]
[1719327523481,20.0,138.32,138.26,18.081]
[1719327523684,23.27945465,138.35,138.27,0.34]
[1719327523991,20.0,138.34,138.3,7.2303]
[1719327524499,20.0,138.34,138.26,0.17]
[1719327524707,20.0,138.34,138.31,18.0751]
[1719327524994,20.0,138.34,138.26,0.17]
[1719327525379,20.0,138.34,138.3,18.0761]
[1719327525595,20.0,138.34,138.26,0.17]
[1719327525596,20.0,138.34,138.27,18.0795]
[1719327525782,20.0,138.34,138.28,0.34]
[1719327525970,20.0,138.34,138.29,7.2308]
[1719327526171,20.0,138.34,138.29,25.3086]
[1719327526395,20.0,138.34,138.29,18.0778]
[1719327526896,20.0,138.34,138.3,7.2304]
[1719327527079,20.0,138.34,138.29,25.3087]
[1719327527797,20.0,138.34,138.3,7.2306]
[1719327529972,15.1515,138.39,138.31,18.0746]
[1719327530177,22.3779,138.39,138.32,7.2294]
[1719327530496,20.0,138.38,138.33,7.229]
[1719327530687,27.2265,138.38,138.31,18.0746]
[1719327530893,27.2265,138.38,138.32,7.2295]
[1719327532101,20.0,138.38,138.33,7.229]
[1719327532302,20.0,138.38,138.33,18.2424]
[1719327532481,20.0,138.38,138.34,7.2285]
[1719327532796,7.225,138.41,138.35,7.228]
[1719327533004,23.91654594,138.42,138.35,25.298]
[1719327533005,31.14104594,138.42,138.35,25.298]
[1719327533295,31.14104594,138.42,138.36,7.2274]
[1719327534000,7.2249,138.41,138.35,25.2978]
[1719327534305,16.3949,138.42,138.37,7.2268]
[1719327534596,20.8449008,138.44,138.37,7.2268]
[1719327534798,20.0,138.43,138.38,0.34]
[1719327535001,16.1786,138.45,138.39,7.2256]
[1719327535303,16.1786,138.45,138.38,0.34]
[1719327535495,16.1786,138.45,138.39,7.2258]
[1719327535690,16.1786,138.45,138.4,0.17]
[1719327536002,16.1786,138.45,138.4,7.3954]
[1719327536684,7.2234,138.44,138.38,0.17]
[1719327536880,23.4015,138.45,138.39,7.2259]
[1719327537097,7.2234,138.44,138.38,7.2263]
[1719327537295,16.1786,138.45,138.38,25.2922]
[1719327537296,23.4016,138.45,138.38,25.2922]
[1719327538302,23.4015,138.45,138.39,7.2258]
[1719327539403,23.4015,138.45,138.38,25.2921]
[1719327539707,7.2233,138.44,138.38,25.2921]
[1719327540708,23.4015,138.45,138.38,25.2921]
[1719327541202,23.4015,138.45,138.39,7.2259]
[1719327541403,16.1786,138.45,138.38,18.0659]
[1719327541604,23.4018,138.45,138.39,7.2258]
[1719327541987,16.1786,138.45,138.39,7.2258]
[1719327542397,23.4016,138.45,138.39,7.2258]
[1719327542605,16.1786,138.45,138.4,7.3953]
[1719327542818,23.4014,138.45,138.39,7.2258]
[1719327543601,16.1786,138.45,138.39,7.2258]
[1719327545107,16.1786,138.45,138.4,18.0629]
[1719327545403,16.1786,138.45,138.4,25.2882]
[1719327545586,16.1786,138.45,138.4,18.0629]
[1719327546489,23.4015,138.45,138.4,18.0629]
[1719327547487,23.4015,138.45,138.34,22.919]
[1719327547488,20.0,138.44,138.34,22.919]
[1719327547694,27.2235,138.44,138.37,18.0664]
[1719327548087,27.2235,138.44,138.38,7.2261]
[1719327548506,27.2235,138.44,138.37,25.2931]
[1719327548709,27.2235,138.44,138.38,7.2264]
[1719327549006,27.2235,138.44,138.37,25.2932]
[1719327549205,0.17,138.43,138.35,7.228]
[1719327549422,7.2248,138.42,138.31,64.9225]
[1719327549602,20.0,138.41,138.31,64.9225]
[1719327549801,20.0,138.41,138.32,69.94]
[1719327550407,20.0,138.42,138.36,7.2273]
[1719327550590,27.2244,138.42,138.36,25.2956]
[1719327550788,7.225,138.41,138.36,18.0683]
[1719327551011,7.225,138.41,138.33,18.0718]
[1719327551212,27.2255,138.4,138.34,7.3983]
[1719327551384,20.0,138.42,138.35,18.0698]
[1719327551584,20.0,138.42,138.34,0.17]
[1719327551805,20.0,138.44,138.33,0.17]
[1719327552007,20.0,138.44,138.34,7.2281]
[1719327552008,7.2255,138.4,138.34,7.2281]
[1719327552196,46.42,138.44,138.34,18.0713]
[1719327552496,7.225,138.41,138.35,7.2276]
[1719327552705,20.0,138.4,138.35,7.2276]
[1719327552905,7.2239,138.43,138.37,7.2269]
[1719327553113,28.79,138.42,138.37,7.2269]
[1719327553418,28.79,138.42,138.37,16.0169]
[1719327554811,20.0,138.42,138.37,16.0169]
[1719327556014,28.79,138.42,138.37,16.0169]
[1719327556205,28.79,138.42,138.37,8.79]
[1719327556520,16.0149,138.41,138.33,18.2418]
[1719327556819,16.0154,138.4,138.35,8.79]
[1719327556998,8.79,138.4,138.35,16.018]
[1719327557421,16.015,138.41,138.35,8.79]
[1719327557625,7.2255,138.4,138.35,8.79]
[1719327557796,16.0155,138.4,138.35,8.79]
[1719327558293,8.79,138.4,138.35,8.79]
[1719327558917,8.79,138.4,138.35,16.018]
[1719327559224,16.0154,138.4,138.35,8.79]
[1719327559426,16.0154,138.4,138.34,7.2284]
[1719327559427,7.2251,138.41,138.34,7.2284]
[1719327559718,27.2248,138.42,138.35,25.4677]
[1719327559898,27.2248,138.42,138.35,25.2977]
[1719327560095,7.2254,138.4,138.35,18.0699]
[1719327560397,7.225,138.41,138.35,25.2977]
[1719327561038,20.0,138.42,138.35,18.0699]
[1719327561523,20.0,138.44,138.35,18.0699]
[1719327561726,7.2239,138.43,138.37,7.2269]
[1719327561905,7.2239,138.43,138.36,7.2273]
[1719327561906,20.0,138.42,138.36,7.2273]
[1719327562226,27.2244,138.42,138.36,7.2273]
[1719327563918,20.0,138.42,138.39,7.2258]
[1719327564117,30.9286243,138.45,138.39,7.2258]
[1719327564118,20.0,138.44,138.39,7.2258]
[1719327564310,20.0,138.44,138.38,7.2263]
[1719327564712,20.0,138.44,138.39,18.0642]
[1719327564910,20.0,138.44,138.4,7.225]
[1719327565115,20.0,138.44,138.39,25.2899]
[1719327565915,27.2235,138.44,138.37,28.9452]
[1719327566121,7.225,138.41,138.36,18.0679]
[1719327566300,20.0,138.44,138.34,23.6249]
[1719327566495,7.2258,138.4,138.34,23.6249]
[1719327566728,7.2251,138.41,138.35,7.2278]
[1719327566912,7.2245,138.42,138.36,7.2274]
[1719327567217,20.0,138.41,138.36,7.2274]
[1719327567901,20.0,138.41,138.37,7.2269]
[1719327568210,20.0,138.42,138.37,7.2269]
[1719327568523,20.0,138.42,138.35,25.2973]
[1719327568524,27.2246,138.42,138.35,25.2973]
[1719327568709,27.2246,138.42,138.35,18.0698]
[1719327569722,27.2246,138.42,138.36,7.2272]
[1719327570417,20.0,138.42,138.37,7.2265]
[1719327570628,7.2246,138.42,138.36,7.2274]
[1719327570815,27.2249,138.41,138.35,25.2976]
[1719327571020,20.0,138.41,138.36,7.2272]
[1719327571522,20.0,138.42,138.37,7.2269]
[1719327571902,20.0,138.42,138.36,7.2273]
[1719327572205,27.2245,138.42,138.36,7.2273]
[1719327573126,27.2245,138.42,138.35,18.0698]
[1719327573127,7.225,138.41,138.35,25.2977]
[1719327574433,7.225,138.41,138.35,25.0977]
[1719327574724,27.2245,138.42,138.36,7.2274]
[1719327574930,20.0,138.42,138.38,18.0658]
[1719327575225,7.2239,138.43,138.38,18.0658]
[1719327575436,20.0,138.42,138.38,18.0658]
[1719327575643,7.2253,138.41,138.34,7.2283]
[1719327575846,7.2259,138.39,138.33,7.2287]
[1719327576626,6.3655,138.41,138.31,7.2297]
[1719327576627,16.6526,138.38,138.31,7.2297]
[1719327576804,7.2275,138.36,138.3,7.2303]
[1719327577428,23.8792,138.38,138.31,7.2299]
[1719327577749,20.0,138.37,138.31,7.2299]
[1719327578624,27.227,138.37,138.31,7.2299]
[1719327580106,20.0,138.37,138.32,7.2295]
[1719327580434,20.0,138.37,138.31,18.0751]
[1719327580634,8.79,138.35,138.32,7.2292]
[1719327581629,20.0,138.37,138.28,18.0781]
[1719327581940,8.79,138.32,138.3,7.2305]
[1719327582106,13.4163,138.36,138.3,7.2305]
[1719327582306,8.79,138.33,138.3,7.2305]
[1719327583628,8.79,138.34,138.31,7.23]
[1719327583816,20.0,138.35,138.32,7.2295]
[1719327584224,20.0,138.35,138.33,7.2286]
[1719327584425,16.4826,138.38,138.33,7.2286]
[1719327584426,8.79,138.36,138.33,7.2286]
[1719327584642,20.0,138.35,138.32,18.0735]
[1719327584818,20.0,138.35,138.32,25.3029]
[1719327585153,8.79,138.37,138.33,7.229]
[1719327585330,20.0,138.36,138.32,25.3029]
[1719327585514,8.79,138.36,138.32,25.3029]
[1719327587254,20.0,138.37,138.33,7.2289]
[1719327587926,28.79,138.37,138.33,7.2289]
[1719327588338,8.79,138.36,138.31,7.23]
[1719327588648,8.79,138.35,138.3,16.0204]
[1719327588937,16.0175,138.36,138.3,16.0205]
[1719327589145,7.2281,138.35,138.3,8.79]
[1719327589832,7.2286,138.34,138.29,15.1939]
[1719327590134,7.2277,138.36,138.3,7.2306]
[1719327590335,20.0,138.35,138.3,7.2306]
[1719327590637,28.79,138.35,138.29,15.1939]
[1719327591022,28.79,138.35,138.3,7.2306]
[1719327591522,20.0,138.35,138.3,7.2306]
[1719327591730,28.79,138.35,138.3,7.2306]
[1719327592742,28.79,138.35,138.31,7.2301]
[1719327592953,20.0,138.35,138.31,7.2301]
[1719327593245,24.01217095,138.38,138.33,7.2289]
[1719327593424,20.0,138.37,138.32,34.0929]
[1719327593622,28.79,138.37,138.32,25.3029]
[1719327593831,36.017,138.37,138.32,18.0735]
[1719327595155,28.79,138.37,138.32,25.303]
[1719327595325,20.0,138.37,138.32,25.303]
[1719327595646,28.79,138.37,138.32,25.303]
[1719327596441,28.79,138.37,138.31,8.79]
[1719327596442,36.017,138.37,138.31,7.2299]
[1719327596646,36.017,138.37,138.3,16.0206]
[1719327596647,16.0177,138.36,138.3,16.0206]
[1719327597552,8.79,138.35,138.3,16.0206]
[1719327597851,8.79,138.35,138.29,24.4806]
[1719327598148,8.79,138.35,138.3,8.79]
[1719327598349,8.79,138.35,138.3,16.0205]
[1719327598737,7.2282,138.35,138.29,7.2311]
[1719327598939,7.2275,138.36,138.3,7.2302]
[1719327599234,36.018,138.35,138.3,7.2302]
[1719327599425,36.018,138.35,138.29,16.0209]
[1719327599634,36.018,138.35,138.3,8.79]
[1719327600047,36.018,138.35,138.29,7.2309]
[1719327600360,23.7091,138.38,138.32,7.2292]
[1719327600651,16.4826,138.38,138.33,16.0186]
[1719327601024,25.2726,138.38,138.33,16.0186]
[1719327601226,25.2726,138.38,138.33,8.79]
[1719327601425,8.79,138.37,138.32,18.0733]
[1719327602039,8.79,138.37,138.32,34.0927]
[1719327602243,25.2726,138.38,138.32,34.0927]
[1719327602542,16.4826,138.38,138.33,7.229]
[1719327602855,23.7091,138.38,138.32,25.3027]
[1719327603096,8.79,138.37,138.32,34.0927]
[1719327603264,8.79,138.37,138.33,7.2289]
[1719327603466,8.79,138.37,138.32,26.8633]
[1719327603467,13.61762404,138.4,138.34,16.0185]
[1719327603627,8.79,138.39,138.34,16.0185]
[1719327604147,8.79,138.39,138.34,8.79]
[1719327604353,8.79,138.39,138.33,16.019]
[1719327604529,8.79,138.39,138.34,7.2285]
[1719327605061,13.61762404,138.4,138.32,8.79]
[1719327605368,8.79,138.37,138.31,16.0199]
[1719327605651,8.79,138.38,138.33,8.79]
[1719327605836,8.79,138.38,138.32,16.0195]
[1719327606041,8.79,138.38,138.33,7.229]
[1719327606459,36.016,138.39,138.33,16.019]
[1719327606960,7.52932404,138.4,138.35,8.79]
[1719327607155,32.2852,138.41,138.35,8.79]
[1719327609354,7.53286354,138.42,138.36,21.1898]
[1719327609557,7.53286354,138.42,138.41,7.2249]
[1719327609738,6.3937,138.51,138.41,28.96]
[1719327609739,0.8561149,138.5,138.41,28.96]
[1719327609943,0.8561149,138.5,138.43,6.6309]
[1719327610140,0.8561149,138.5,138.45,7.2226]
[1719327610339,0.8561149,138.5,138.44,0.17]
[1719327610340,0.8561149,138.5,138.47,8.79]
[1719327610540,0.8561149,138.5,138.48,8.79]
[1719327610771,0.8561149,138.5,138.48,7.221]
[1719327611256,0.8561149,138.5,138.49,7.2207]
[1719327611455,0.8561149,138.5,138.49,27.2207]
[1719327612466,7.5390347,138.58,138.49,68.1422]
[1719327612666,7.5390347,138.58,138.53,7.2184]
[1719327613173,7.5390347,138.58,138.52,7.219]
[1719327613752,7.5390347,138.58,138.52,25.2664]
[1719327613970,7.5390347,138.58,138.53,7.2184]
[1719327614264,7.2151,138.6,138.53,7.2184]
[1719327614475,20.0,138.59,138.53,7.2184]
[1719327614764,27.2156,138.59,138.52,25.2665]
[1719327616662,27.2156,138.59,138.53,7.2186]
[1719327617033,7.54657781,138.6,138.55,7.2175]
[1719327617750,7.54657781,138.6,138.55,7.2176]
[1719327618242,7.2136,138.63,138.56,7.217]
[1719327618653,7.54470018,138.62,138.57,7.2164]
[1719327619651,7.54470018,138.62,138.58,29.3369]
[1719327619843,0.8561149,138.64,138.58,40.161]
[1719327620036,0.8561149,138.64,138.58,24.5186]
[1719327620240,0.8561149,138.64,138.54,22.1213]
[1719327620436,0.8561149,138.64,138.53,7.2185]
[1719327620437,7.2155,138.59,138.52,7.219]
[1719327620642,21.5056,138.63,138.53,20.0]
[1719327620643,7.2151,138.6,138.53,20.0]
[1719327621040,21.5056,138.63,138.53,20.0]
[1719327621235,27.384,138.62,138.55,7.2171]
[1719327621737,27.214,138.62,138.56,7.2168]
[1719327621961,7.2146,138.61,138.55,7.2175]
[1719327622494,20.0,138.62,138.56,7.217]
[1719327622660,27.214,138.62,138.54,18.0441]
[1719327623360,20.0,138.62,138.56,7.2165]
[1719327623570,27.2141,138.62,138.56,7.2165]
[1719327624470,20.0,138.62,138.55,7.2172]
[1719327624674,0.17,138.61,138.52,20.0]
[1719327624895,7.3849,138.61,138.54,7.2179]
[1719327625064,7.215,138.6,138.54,7.2179]
[1719327625791,0.17,138.61,138.51,6.4789]
[1719327625996,63.3769,138.61,138.49,18.0505]
[1719327626295,20.0,138.6,138.49,18.0505]
[1719327626485,0.34,138.59,138.49,18.0505]
[1719327626693,7.2172,138.56,138.49,25.271]
[1719327626869,18.3794,138.59,138.49,18.0505]
[1719327627071,7.2181,138.54,138.48,7.2212]
[1719327627385,7.2177,138.55,138.49,7.2207]
[1719327627961,7.2183,138.54,138.48,25.2739]
[1719327628571,21.4499,138.56,138.44,6.233]
[1719327628761,0.17,138.53,138.42,15.3417]
[1719327628969,7.2206,138.5,138.43,7.2237]
[1719327629569,7.2206,138.5,138.44,7.2232]
[1719327629879,7.2206,138.5,138.43,7.2237]
[1719327630383,0.17,138.51,138.44,18.0576]
[1719327630586,0.17,138.51,138.4,6.2299]
[1719327630587,7.53240549,138.5,138.49,7.2207]
[1719327630788,20.17,138.55,138.49,7.2207]
[1719327630990,27.218,138.55,138.48,25.2735]
[1719327631192,7.53550098,138.53,138.45,18.0562]
[1719327631368,20.0,138.52,138.45,18.0562]
[1719327631573,20.0,138.52,138.46,7.2218]
[1719327631777,27.2192,138.52,138.46,7.2218]
[1719327631991,27.2192,138.52,138.45,18.0562]
[1719327632205,7.2202,138.5,138.43,7.2234]
[1719327632488,7.2207,138.49,138.43,7.2234]
[1719327633081,20.0,138.52,138.44,18.0579]
[1719327633294,20.0,138.52,138.47,7.2214]
[1719327633471,20.0,138.52,138.46,25.2775]
[1719327634186,27.2192,138.52,138.46,25.2775]
[1719327634697,20.0,138.52,138.46,25.2775]
[1719327634882,20.0,138.52,138.47,7.2216]
[1719327635799,20.0,138.52,138.46,25.2774]
[1719327636603,20.0,138.52,138.47,7.2217]
[1719327636899,7.53550098,138.53,138.48,18.0526]
[1719327637295,7.53550098,138.53,138.49,7.2202]
[1719327637601,7.53550098,138.53,138.44,16.251]
[1719327637805,14.75430098,138.53,138.47,7.2216]
[1719327638180,14.75430098,138.53,138.47,25.2754]
[1719327639299,14.75430098,138.53,138.45,7.2224]
[1719327639300,7.2194,138.52,138.45,7.2224]
[1719327639503,7.53550098,138.53,138.44,16.251]
[1719327639504,14.75430098,138.53,138.44,16.251]
[1719327639682,7.53550098,138.53,138.47,7.2214]
[1719327640089,7.53550098,138.53,138.48,7.2211]
[1719327640383,7.53550098,138.53,138.46,18.0554]
[1719327640384,7.53550098,138.53,138.43,0.17]
[1719327640590,7.22,138.51,138.44,7.2231]
[1719327640799,7.22,138.51,138.45,7.2228]
[1719327640983,7.2212,138.49,138.43,18.0587]
[1719327641184,36.0047,138.48,138.4,25.2886]
[1719327641406,7.223,138.45,138.4,18.0632]
[1719327641586,43.52146284,138.48,138.37,15.2077]
[1719327641587,143.52146284,138.48,138.37,18.0668]
[1719327641790,7.2238,138.43,138.37,25.2933]
[1719327641999,26.4836,138.42,138.35,7.2276]
[1719327642302,7.2255,138.4,138.34,18.0704]
[1719327642779,20.0,138.39,138.34,25.2988]
[1719327642985,20.0,138.39,138.34,18.0704]
[1719327643299,27.2259,138.39,138.28,49.0782]
[1719327643508,27.2259,138.39,138.28,22.7682]